bitfinex-derivatives/quotes_ETHF0:USTF0_20250602
["timestamp","ask_amount","ask_price","bid_price","bid_amount"]
[1748876725489,2.15224,2526.1,2526.0,0.79145]
[1748876726299,19.00893319,2526.2,2526.1,0.79142]
[1748876726502,22.70190317,2526.2,2525.9,4.399]
[1748876726798,0.79145,2526.0,2525.9,5.19045]
[1748876726994,0.79144,2526.1,2526.0,0.79142]
[1748876727200,2.13754,2526.1,2526.0,0.79142]
[1748876727597,2.13754,2526.1,2526.0,5.19042]
[1748876727903,21.13854,2526.1,2526.0,0.79142]
[1748876728100,20.3471,2526.1,2526.0,5.19042]
[1748876728299,21.13852,2526.1,2526.0,5.19042]
[1748876728703,20.3471,2526.1,2526.0,5.19042]
[1748876728902,2.35280317,2526.2,2526.1,0.79142]
[1748876729201,0.00593319,2526.2,2526.1,1.52651789]
[1748876729396,0.00593319,2526.2,2526.1,3.8563801]
[1748876729591,0.00593319,2526.2,2526.1,3.53551789]
[1748876730898,0.00593319,2526.2,2526.1,5.0243856]
[1748876731105,0.00593319,2526.2,2526.1,9.70234115]
[1748876731308,0.5937,2526.3,2526.2,0.79139]
[1748876731507,3.2078,2526.7,2526.6,0.79126]
[1748876731800,3.2078,2526.7,2526.6,5.19026]
[1748876732203,0.79117,2526.9,2526.8,0.7912]
[1748876732502,19.78917,2526.9,2526.8,0.7912]
[1748876733506,0.79121,2526.8,2526.7,0.7912]
[1748876733912,2.06911,2526.8,2526.7,0.7912]
[1748876734496,1.2779,2526.8,2526.7,0.7912]
[1748876734708,1.2779,2526.8,2526.7,5.1902]
[1748876734709,2.0691,2526.8,2526.7,5.1902]
[1748876734906,1.2779,2526.8,2526.7,5.1902]
[1748876735207,2.0691,2526.8,2526.7,5.1902]
[1748876735407,1.2779,2526.8,2526.7,5.1902]
[1748876736907,19.1953,2526.9,2526.8,0.7912]
[1748876737402,0.1973,2526.9,2526.8,0.7912]
[1748876737604,2.35280317,2527.1,2527.0,0.79114]
[1748876737605,0.00593319,2527.1,2527.0,0.79114]
[1748876737799,0.00593319,2527.1,2527.0,3.99894]
[1748876738305,0.00593319,2527.1,2527.0,8.99894]
[1748876738704,3.19e-06,2527.1,2527.0,8.99894]
[1748876739297,3.19e-06,2527.1,2527.0,11.49519829]
[1748876740406,3.19e-06,2527.1,2527.0,6.49519829]
[1748876740614,3.19e-06,2527.1,2527.0,11.49519829]
[1748876741509,3.19e-06,2527.1,2527.0,6.81637556]
[1748876741707,3.19e-06,2527.1,2527.0,6.49519829]
[1748876745616,3.19e-06,2527.1,2527.0,6.81606911]
[1748876745820,3.19e-06,2527.1,2527.0,6.49519829]
[1748876746208,2.34686998,2528.3,2528.2,0.79076]
[1748876746521,4.29316998,2528.5,2528.1,4.388]
[1748876746713,0.7907,2528.4,2528.3,0.79071]
[1748876746913,1.3405,2528.4,2528.3,0.79071]
[1748876750213,2.1312,2528.4,2528.3,0.79071]
[1748876750712,20.3175,2528.4,2528.3,0.79073]
[1748876751210,1.3405,2528.4,2528.3,0.79073]
[1748876751415,20.3175,2528.4,2528.3,0.79073]
[1748876753221,0.79659319,2528.6,2528.5,0.79067]
[1748876753222,0.00593319,2528.6,2528.5,0.79067]
[1748876753720,0.79656319,2528.6,2528.5,5.17667]
[1748876753914,0.79067,2528.5,2528.4,5.17667]
[1748876754114,1.3601,2528.5,2528.4,0.79067]
[1748876754316,2.15077,2528.5,2528.4,4.386]
[1748876754916,2.15077,2528.5,2528.4,5.1767]
[1748876755118,0.79071,2528.4,2528.3,0.79071]
[1748876755316,1.3601,2528.4,2528.3,0.79071]
[1748876758730,18.97393319,2528.6,2528.5,0.79067]
[1748876759529,20.23123319,2528.6,2528.5,0.79067]
[1748876760230,1.26323319,2528.6,2528.5,0.79067]
[1748876760526,20.23023319,2528.6,2528.5,0.79067]
[1748876761129,0.7907,2528.4,2528.3,0.672]
[1748876761338,0.7907,2528.4,2528.3,0.79073]
[1748876761626,0.7907,2528.4,2528.3,5.17573]
[1748876762425,1.3833,2528.4,2528.3,5.17573]
[1748876762625,1.3833,2528.4,2528.3,0.79073]
[1748876762827,1.3833,2528.4,2528.1,0.00593319]
[1748876762828,0.79076,2528.2,2528.1,0.00593319]
[1748876763032,3.99856,2528.2,2528.1,0.00593319]
[1748876763224,8.99856,2528.2,2528.1,0.00593319]
[1748876763422,10.24606,2528.2,2528.1,0.00593319]
[1748876765124,12.60452175,2528.2,2528.1,0.00593319]
[1748876766023,12.60452175,2528.2,2528.1,0.07663108]
[1748876766533,10.24606,2528.2,2528.1,0.07663108]
[1748876770530,12.58445998,2528.2,2527.4,4.64739]
[1748876770830,12.58445998,2528.2,2527.3,0.79101]
[1748876770831,0.79104,2527.4,2527.3,0.79101]
[1748876771033,1.9773,2527.7,2527.6,0.79092]
[1748876771034,0.79094,2527.7,2527.6,0.79092]
[1748876771235,0.79098,2527.6,2527.5,0.79095]
[1748876771426,2.15288,2527.6,2527.5,0.79095]
[1748876771826,2.15285,2527.6,2527.5,0.79095]
[1748876772427,1.3619,2527.6,2527.5,0.79095]
[1748876772634,0.79095,2527.6,2527.5,0.79095]
[1748876774137,19.75294,2527.7,2527.6,0.79095]
[1748876774526,18.962,2527.7,2527.6,0.79095]
[1748876774731,19.75292,2527.7,2527.6,0.79095]
[1748876775430,19.75292,2527.7,2527.5,0.79096]
[1748876775431,0.79098,2527.6,2527.5,0.79096]
[1748876775736,2.06338,2527.6,2527.5,0.79096]
[1748876775935,6.19394409,2527.8,2527.7,0.79092]
[1748876775936,6.98484409,2527.8,2527.7,0.79092]
[1748876776231,23.5808,2527.8,2527.7,0.79092]
[1748876776435,3.8299,2527.8,2527.7,0.79092]
[1748876776731,22.1678,2527.8,2527.7,0.79092]
[1748876777033,22.95868,2527.8,2527.7,0.79092]
[1748876777232,24.23108,2527.8,2527.7,0.79092]
[1748876777637,0.79096,2527.7,2527.6,0.79093]
[1748876777931,0.79098,2527.6,2527.5,0.79096]
[1748876778532,0.79101,2527.4,2527.3,0.79696319]
[1748876779138,0.79101,2527.4,2527.3,0.79697319]
[1748876779329,0.79101,2527.4,2527.3,0.00593319]
[1748876779637,0.7911,2527.1,2527.0,1.16365829]
[1748876779839,22.9569,2527.1,2527.0,1.16365829]
[1748876780334,23.55,2527.1,2527.0,1.16365829]
[1748876780538,24.1775,2527.1,2527.0,1.16365829]
[1748876781126,26.54154409,2527.1,2527.0,1.16365829]
[1748876781429,27.90864409,2527.1,2527.0,1.16365829]
[1748876781936,0.79127,2526.7,2526.6,0.79124]
[1748876782137,0.79129,2526.6,2526.5,0.79128]
[1748876782332,2.15839,2526.6,2526.5,0.79128]
[1748876782536,0.7913,2526.5,2526.4,0.7913]
[1748876782727,2.15838,2526.6,2526.5,0.79129]
[1748876782936,20.3261,2526.6,2526.5,0.79129]
[1748876783440,21.11736,2526.6,2526.5,0.79129]
[1748876783630,0.79131,2526.5,2526.4,0.7913]
[1748876783825,20.3261,2526.6,2526.2,0.00593319]
[1748876784026,0.79135,2526.3,2526.2,0.79732319]
[1748876784224,1.97841,2526.3,2525.6,0.79153]
[1748876784429,1.97841,2526.3,2525.6,0.79155]
[1748876784430,0.79156,2525.7,2525.6,0.79155]
[1748876784727,19.74856,2525.7,2525.6,0.79155]
[1748876784934,0.79157,2525.6,2525.5,0.79158]
[1748876785239,2.115,2525.6,2525.5,0.7916]
[1748876787034,0.79167,2525.3,2525.2,1.9237]
[1748876787232,3.2078,2525.4,2525.3,0.79167]
[1748876787435,0.79163,2525.5,2525.4,0.79162]
[1748876788043,3.91144997,2526.7,2525.4,12.5848]
[1748876788344,23.5328,2527.4,2526.6,3.2078]
[1748876788539,15.6457999,2527.7,2527.0,0.79113]
[1748876788838,18.963,2527.4,2527.0,0.79113]
[1748876789042,22.1708,2527.4,2527.0,0.79113]
[1748876789242,3.8009,2527.1,2526.7,2.6388]
[1748876789438,0.5931,2527.1,2527.0,0.79113]
[1748876789639,19.5551,2527.1,2527.0,0.79113]
[1748876789844,19.5551,2527.1,2526.8,1.34833319]
[1748876790031,20.8735,2527.1,2526.9,0.79117]
[1748876790334,20.8735,2527.1,2526.9,0.79115]
[1748876790335,18.962,2527.0,2526.9,0.79115]
[1748876791640,2.7026,2527.1,2527.0,0.79113]
[1748876791834,20.8725,2527.1,2527.0,0.79113]
[1748876792441,21.6636,2527.1,2527.0,0.79113]
[1748876792642,20.8725,2527.1,2527.0,0.79113]
[1748876792942,21.6636,2527.1,2527.0,0.79113]
[1748876793341,21.6636,2527.1,2526.8,0.00593319]
[1748876793646,20.8725,2527.1,2527.0,0.79113]
[1748876793833,0.5931,2527.1,2527.0,0.79113]
[1748876794248,0.5931,2527.1,2527.0,0.86182789]
[1748876794541,0.5931,2527.1,2527.0,5.23882789]
[1748876796933,0.5931,2527.1,2527.0,6.53532789]
[1748876799142,22.95467,2527.9,2527.8,0.79088]
[1748876799444,0.79088,2527.8,2527.6,0.79093]
[1748876799934,0.79092,2527.7,2527.6,0.79093]
[1748876800437,1.9773,2527.7,2527.1,5.1581]
[1748876800738,0.79106,2527.3,2527.2,0.79107]
[1748876800942,0.79107,2527.2,2527.1,0.79109]
[1748876801136,0.79107,2527.3,2527.2,0.79107]
[1748876801333,0.79107,2527.2,2527.1,0.79108]
[1748876801534,2.11624,2527.4,2527.3,0.79104]
[1748876803039,0.79108,2527.3,2527.2,0.79105]
[1748876803240,0.7911,2527.2,2527.1,0.79108]
[1748876803635,2.78616,2527.3,2527.2,0.79107]
[1748876805141,1.9951,2527.3,2527.2,0.79107]
[1748876805339,1.3101,2527.3,2527.2,0.79107]
[1748876807138,3.2078,2527.5,2527.4,0.79101]
[1748876807342,23.43353319,2527.9,2527.8,0.79088]
[1748876807846,24.22438319,2527.9,2527.8,0.79088]
[1748876808343,5.27338319,2527.9,2527.8,0.79088]
[1748876808542,2.06558319,2527.9,2527.8,0.79088]
[1748876808750,0.00593319,2527.9,2527.8,10.15788]
[1748876809038,3.19e-06,2527.9,2527.8,10.15788]
[1748876809741,3.19e-06,2527.9,2527.8,5.15688]
[1748876810149,0.79085319,2527.9,2527.8,0.79088]
[1748876810346,3.19e-06,2527.9,2527.7,0.7909]
[1748876810549,3.19e-06,2527.9,2527.8,0.79088]
[1748876811242,5.18496319,2527.9,2527.5,0.79096]
[1748876811444,0.79099,2527.6,2527.5,0.79096]
[1748876812045,0.791,2527.5,2527.4,0.79099]
[1748876812246,2.12046,2527.6,2527.5,0.79098]
[1748876812846,0.791,2527.5,2527.4,0.791]
[1748876813250,0.79101,2527.4,2527.3,9.71502]
[1748876813451,0.791,2527.5,2527.4,0.79099]
[1748876814252,6.51469,2527.6,2527.1,4.366]
[1748876814553,0.79107,2527.3,2527.2,0.79106]
[1748876814944,0.79107,2527.2,2527.1,5.15708]
[1748876815447,0.79107,2527.2,2527.1,5.1571]
[1748876815948,2.06507,2527.2,2527.1,5.1571]
[1748876816153,1.274,2527.2,2527.1,5.1571]
[1748876816749,0.79107,2527.3,2527.2,0.79105]
[1748876817250,0.79103,2527.4,2527.3,0.79101]
[1748876817646,1.3205,2527.5,2527.1,4.366]
[1748876817647,1.3205,2527.5,2527.4,0.79101]
[1748876817952,20.2665,2527.5,2527.4,0.79101]
[1748876818553,22.1538,2527.6,2527.5,0.79098]
[1748876818847,18.946,2527.6,2527.5,0.79098]
[1748876819855,0.791,2527.5,2527.4,0.79098]
[1748876821252,24.28287,2527.6,2527.5,0.79098]
[1748876821941,0.791,2527.5,2527.4,0.79098]
[1748876822147,0.79101,2527.4,2527.3,2.10662]
[1748876822343,0.7911,2527.2,2527.1,0.79109]
[1748876824455,2.12916,2527.3,2527.2,0.79107]
[1748876824753,3.99877,2527.6,2527.5,0.79098]
[1748876824955,22.94277,2527.6,2527.5,0.79098]
[1748876825156,3.2078,2527.6,2527.5,0.79098]
[1748876825559,22.1508,2527.6,2527.5,0.79098]
[1748876825753,22.94175,2527.6,2527.5,0.79098]
[1748876825955,22.1508,2527.6,2527.5,0.79098]
[1748876826261,3.2078,2527.6,2527.5,0.79098]
[1748876826462,22.1508,2527.6,2527.5,0.79098]
[1748876826758,3.19e-06,2527.9,2527.8,0.79088]
[1748876826961,0.79085319,2527.9,2527.8,0.79088]
[1748876827167,19.73385319,2527.9,2527.8,0.79088]
[1748876827459,1.97722,2527.8,2527.4,1.2997]
[1748876827757,0.79104,2527.4,2527.3,0.79102]
[1748876828060,0.79107,2527.2,2527.1,0.07069789]
[1748876828261,22.94087,2527.2,2527.1,0.86179789]
[1748876828764,22.94087,2527.2,2527.1,0.07069789]
[1748876829064,22.94087,2527.2,2527.1,0.86179789]
[1748876829753,22.1488,2527.2,2527.1,0.86179789]
[1748876830161,1.34,2527.3,2527.2,0.79107]
[1748876830360,0.791,2527.5,2527.4,0.79101]
[1748876830559,19.732,2527.5,2527.4,0.79101]
[1748876830754,18.941,2527.5,2527.2,1.2548]
[1748876830957,3.99884,2527.3,2527.2,1.2548]
[1748876831262,3.2078,2527.3,2527.2,1.2548]
[1748876831467,3.2078,2527.3,2527.2,2.04587]
[1748876831965,2.65887,2527.8,2527.7,0.79092]
[1748876831966,3.2078,2527.8,2527.7,0.79092]
[1748876832352,3.19e-06,2527.9,2527.8,0.79088]
[1748876832763,3.19e-06,2527.9,2527.8,2.11598]
[1748876833561,3.19e-06,2527.9,2527.8,10.32378]
[1748876834962,3.19e-06,2527.9,2527.8,11.51173208]
[1748876835156,3.19e-06,2527.9,2527.8,10.32378]
[1748876836562,3.19e-06,2527.9,2527.8,5.32378]
[1748876838655,3.19e-06,2527.9,2527.8,9.68278]
[1748876840365,3.19e-06,2527.9,2527.8,10.23018803]
[1748876840569,3.19e-06,2527.9,2527.8,9.68278]
[1748876841166,3.19e-06,2527.9,2527.8,9.75347789]
[1748876842768,3.19e-06,2527.9,2527.8,5.39447789]
[1748876842969,3.19e-06,2527.9,2527.8,8.42837789]
[1748876843772,3.19e-06,2527.9,2527.8,9.70747789]
[1748876844363,3.19e-06,2527.9,2527.8,8.42837789]
[1748876844559,0.79085319,2527.9,2527.8,0.86157789]
[1748876844761,1.29250319,2527.9,2527.8,0.86157789]
[1748876845571,3.19e-06,2527.9,2527.8,0.86157789]
[1748876846466,3.19e-06,2527.9,2527.8,2.12287789]
[1748876846865,3.19e-06,2527.9,2527.8,5.33067789]
[1748876847163,3.19e-06,2527.9,2527.8,5.87836886]
[1748876847366,3.19e-06,2527.9,2527.8,5.33067789]
[1748876848363,3.19e-06,2527.9,2527.8,4.06937789]
[1748876848568,3.19e-06,2527.9,2527.8,5.21957789]
[1748876849066,1.26310319,2527.9,2527.8,5.21957789]
[1748876849567,1.26310319,2527.9,2527.8,0.86157789]
[1748876849870,2.05395319,2527.9,2527.8,0.07069789]
[1748876851075,0.79101,2527.4,2527.3,0.79102]
[1748876851265,0.79107,2527.2,2527.1,3.99886]
[1748876851465,0.79117,2526.9,2526.8,0.79710319]
[1748876851774,0.79117,2526.9,2526.8,0.79712319]
[1748876852166,3.99897,2526.9,2526.8,0.00593319]
[1748876852471,1.97808,2526.7,2526.3,0.79135]
[1748876852764,3.2078,2526.4,2525.8,7.5668]
[1748876852965,0.79141,2526.2,2526.1,0.79142]
[1748876853172,2.03787,2526.3,2526.2,0.79138]
[1748876853470,0.79136,2526.3,2526.2,0.79137]
[1748876853862,3.2078,2526.4,2526.3,0.79135]
[1748876854265,8.2078,2526.4,2526.3,0.79135]
[1748876854466,8.2078,2526.4,2526.0,0.00593319]
[1748876854770,0.5937,2526.3,2526.1,0.79139]
[1748876855074,0.5937,2526.3,2526.0,0.00593319]
[1748876855275,3.2078,2526.1,2526.0,0.79738319]
[1748876856070,0.79141,2526.2,2526.0,0.79738319]
[1748876856071,0.79141,2526.2,2526.1,0.79142]
[1748876857473,0.79142,2526.1,2526.0,0.79737319]
[1748876857671,3.99922,2526.1,2526.0,0.79737319]
[1748876858078,3.2078,2526.1,2526.0,0.79737319]
[1748876858378,3.99922,2526.1,2526.0,0.79737319]
[1748876859268,3.2078,2526.1,2526.0,0.79737319]
[1748876859875,2.00477,2526.3,2526.1,0.7914]
[1748876860074,2.00477,2526.3,2526.0,0.00593319]
[1748876860379,2.00477,2526.3,2526.2,0.79138]
[1748876860577,1e-05,2526.3,2526.2,0.79138]
[1748876860778,1.3088,2527.3,2526.2,7.62545]
[1748876861071,3.2078,2527.5,2527.4,0.79101]
[1748876861681,0.79102,2527.4,2527.3,0.79103]
[1748876862070,3.2078,2527.5,2527.4,0.79101]
[1748876862782,3.8319,2527.8,2527.7,0.79092]
[1748876862973,3.2078,2527.8,2527.7,0.79092]
[1748876864180,3.99868,2527.8,2527.7,0.79092]
[1748876864777,4.4491,2527.8,2527.7,0.79092]
[1748876865479,4.4491,2527.8,2527.5,0.00593319]
[1748876865480,0.79094,2527.7,2527.6,0.79094]
[1748876865679,2.11614,2527.7,2527.6,0.79094]
[1748876865880,0.79095,2527.6,2527.5,0.79690319]
[1748876866077,1.3252,2527.6,2527.5,0.79690319]
[1748876866272,20.2542,2527.6,2527.5,0.79690319]
[1748876866977,1.3252,2527.6,2527.5,0.79690319]
[1748876867175,20.2532,2527.6,2527.5,0.79690319]
[1748876869375,20.2532,2527.6,2527.5,0.86760108]
[1748876869684,18.928,2527.6,2527.5,0.86760108]
[1748876870379,19.71895,2527.6,2527.5,0.86760108]
[1748876872480,18.928,2527.6,2527.5,0.86760108]
[1748876872987,3.2078,2527.8,2527.5,0.07663108]
[1748876873284,3.2078,2527.8,2527.7,0.79091]
[1748876873482,22.1308,2527.8,2527.7,0.79091]
[1748876873678,3.2078,2527.8,2527.7,0.79091]
[1748876874484,18.92793319,2528.0,2527.9,0.79085]
[1748876874984,0.00593319,2528.0,2527.9,0.79085]
[1748876875981,3.21373319,2528.0,2527.9,0.79085]
[1748876877282,0.00593319,2528.0,2527.9,0.79085]
[1748876878588,0.79085,2527.9,2527.8,1.3472]
[1748876878892,0.79094,2527.7,2527.6,0.7909]
[1748876879191,3.99874,2527.7,2527.6,0.7909]
[1748876880491,0.79094,2527.7,2527.6,0.7909]
[1748876880692,3.99874,2527.7,2527.6,0.7909]
[1748876880885,3.99874,2527.7,2527.6,0.79094]
[1748876881086,0.79094,2527.6,2527.5,0.86758108]
[1748876881391,0.79094,2527.6,2527.5,2.19588108]
[1748876881786,0.79094,2527.6,2527.5,0.07663108]
[1748876881986,2.05664,2527.6,2527.5,0.07663108]
[1748876883486,0.79113,2527.0,2526.9,0.79115]
[1748876883684,0.79116,2526.9,2526.8,5.14217]
[1748876883889,22.91395,2527.0,2526.9,0.79116]
[1748876884185,22.91293,2527.0,2526.9,0.79116]
[1748876884787,22.91293,2527.0,2526.9,0.86185789]
[1748876885397,22.1218,2527.0,2526.9,0.86185789]
[1748876885586,22.91293,2527.0,2526.9,0.86185789]
[1748876885893,22.1218,2527.0,2526.9,0.86185789]
[1748876886094,3.2078,2527.0,2526.9,2.15605789]
[1748876886300,2.34216,2527.0,2526.9,2.15605789]
[1748876886490,3.13329,2527.0,2526.9,0.86185789]
[1748876887291,21.25516,2527.0,2526.9,0.86185789]
[1748876888595,21.25616,2527.0,2526.9,0.86185789]
[1748876888793,22.04729,2527.0,2526.9,0.86185789]
[1748876888991,22.04729,2527.0,2526.9,0.07069789]
[1748876889190,23.34579,2527.0,2526.9,0.07069789]
[1748876889394,0.79119,2526.8,2526.7,0.00593319]
[1748876890085,5.79119,2526.8,2526.7,0.00593319]
[1748876891192,8.93040381,2526.8,2526.7,0.00593319]
[1748876891891,0.79138,2526.2,2526.1,1.17080116]
[1748876892092,22.91318,2526.2,2526.1,1.17080116]
[1748876892601,22.91318,2526.2,2526.1,1.96221116]
[1748876892798,24.25988,2526.2,2526.1,1.96221116]
[1748876894193,24.25988,2526.2,2526.1,1.17080116]
[1748876894393,30.44704,2526.2,2525.3,1.97912]
[1748876894698,3.2078,2525.8,2525.7,0.79151]
[1748876894893,2.1381,2526.2,2526.1,0.79141]
[1748876895202,0.79145,2526.1,2526.0,0.79142]
[1748876895499,0.79145,2526.1,2525.4,5.26278]
[1748876895500,3.2078,2526.1,2525.3,1.97917]
[1748876895709,3.2078,2525.7,2525.1,3.2078]
[1748876895899,1.3076,2525.6,2525.5,0.7916]
[1748876896203,2.09917,2525.6,2525.5,0.7916]
[1748876896591,0.79163,2525.5,2525.4,0.79162]
[1748876896800,20.2456,2525.5,2525.4,0.79162]
[1748876897394,3.2078,2525.7,2525.6,0.79157]
[1748876897590,22.1238,2525.7,2525.6,0.79157]
[1748876897802,3.2078,2525.7,2525.6,0.79157]
[1748876898099,0.00593319,2526.0,2525.6,0.79157]
[1748876898100,0.00593319,2526.0,2525.9,0.79148]
[1748876898499,3.19e-06,2526.0,2525.9,0.79148]
[1748876898797,3.19e-06,2526.0,2525.9,7.11518]
[1748876899896,3.19e-06,2526.0,2525.9,7.18587789]
[1748876900494,3.19e-06,2526.0,2525.9,2.18587789]
[1748876902111,3.19e-06,2526.0,2525.9,0.86217789]
[1748876902302,3.99924319,2526.0,2525.9,0.07069789]
[1748876903001,3.20780319,2526.0,2525.9,0.86217789]
[1748876903396,4.57440319,2526.0,2525.9,0.86217789]
[1748876903906,5.36584319,2526.0,2525.9,0.86217789]
[1748876904309,24.28084319,2526.0,2525.9,0.86217789]
[1748876904603,23.48940319,2526.0,2525.9,0.86217789]
[1748876905099,24.28084319,2526.0,2525.9,0.86217789]
[1748876905303,23.48940319,2526.0,2525.9,0.86217789]
[1748876905697,24.28084319,2526.0,2525.9,0.86217789]
[1748876906097,3.19e-06,2526.0,2525.9,0.86217789]
[1748876906406,19.70744319,2526.0,2525.9,0.86217789]
[1748876906793,22.91524319,2526.0,2525.9,0.86217789]
[1748876907599,22.91524319,2526.0,2525.9,0.07069789]
[1748876908508,27.91524319,2526.0,2525.9,0.07069789]
[1748876909104,27.91524319,2526.0,2525.2,0.00593001]
[1748876909105,0.79166,2525.3,2525.2,0.00593001]
[1748876909306,3.99946,2525.3,2525.2,0.00593001]
[1748876909500,4.561,2525.4,2525.3,0.79166]
[1748876909802,0.79163,2525.5,2525.4,0.79161]
[1748876910005,0.79159,2525.6,2525.5,0.79158]
[1748876910212,19.70657,2525.6,2525.5,0.79158]
[1748876910508,0.79159,2525.6,2525.5,0.79157]
[1748876910707,19.70659,2525.6,2525.5,0.79157]
[1748876910910,0.79163,2525.5,2525.4,0.7916]
[1748876911303,0.79166,2525.4,2525.3,0.79165]
[1748876911497,3.99946,2525.4,2525.3,0.79165]
[1748876911698,0.79166,2525.3,2525.2,2.10200001]
[1748876911908,0.79166,2525.3,2525.2,1.31033001]
[1748876912214,4.59334,2525.4,2525.3,0.79166]
[1748876913505,3.8017,2525.4,2525.3,0.79166]
[1748876913711,23.50833,2525.4,2525.3,2.05246]
[1748876914208,23.50833,2525.4,2525.3,0.07069789]
[1748876915407,23.50833,2525.4,2525.3,0.86235789]
[1748876915807,23.50833,2525.4,2525.3,0.07069789]
[1748876917805,23.50833,2525.4,2525.3,0.86235789]
[1748876918808,3.8017,2525.4,2525.3,0.86235789]
[1748876919017,0.5939,2525.4,2525.3,2.19095789]
[1748876919720,1.38553,2525.4,2525.3,2.19095789]
[1748876919915,0.5939,2525.4,2525.3,2.19095789]
[1748876920506,19.5089,2525.4,2525.3,2.19095789]
[1748876921114,22.7167,2525.4,2525.3,2.19095789]
[1748876921312,19.5089,2525.4,2525.3,2.19095789]
[1748876921526,0.5939,2525.4,2525.3,2.19095789]
[1748876923720,1.38553,2525.4,2525.3,0.86235789]
[1748876923918,4.59333,2525.4,2525.3,0.86235789]
[1748876924224,4.59333,2525.4,2525.3,0.07069789]
[1748876924523,5.88383,2525.4,2525.3,0.07069789]
[1748876924720,5.88383,2525.4,2525.3,0.86235789]
[1748876925124,3.8017,2525.4,2525.3,0.86235789]
[1748876925311,0.5939,2525.4,2525.3,2.14795789]
[1748876927418,3.19e-06,2526.0,2525.9,0.79148]
[1748876927618,3.19e-06,2526.0,2525.9,3.99928]
[1748876928423,3.19e-06,2526.0,2525.9,1.46058]
[1748876929921,18.91100319,2526.0,2525.9,1.46058]
[1748876930319,3.19e-06,2526.0,2525.9,6.46058]
[1748876930621,3.19e-06,2526.0,2525.9,1.46058]
[1748876930827,0.79144319,2526.0,2525.9,0.79148]
[1748876931024,1.24530319,2526.0,2525.9,0.79148]
[1748876932630,1.24530319,2526.0,2525.9,0.79147]
[1748876933225,3.19e-06,2526.0,2525.9,0.79147]
[1748876934330,18.90900319,2526.0,2525.9,0.79147]
[1748876935131,3.19e-06,2526.0,2525.9,0.79147]
[1748876939633,3.19e-06,2526.0,2525.9,3.99927]
[1748876940130,3.19e-06,2526.0,2525.9,13.33627]
[1748876940326,3.19e-06,2526.0,2525.9,14.53672122]
[1748876941331,3.19e-06,2526.0,2525.9,14.5363974]
[1748876941834,3.2078,2527.0,2526.9,0.79116]
[1748876942027,0.79107,2527.2,2527.1,0.7911]
[1748876942229,19.69609,2527.2,2527.1,0.7911]
[1748876942432,20.93029,2527.2,2527.1,0.7911]
[1748876942627,20.1392,2527.2,2526.8,1.2807]
[1748876942935,19.69512,2527.1,2527.0,0.79112]
[1748876943133,0.79115,2527.0,2526.9,0.79115]
[1748876943334,20.92931,2527.1,2527.0,0.79113]
[1748876943634,20.1382,2527.1,2527.0,0.79113]
[1748876944236,20.9293,2527.1,2527.0,0.79113]
[1748876944445,20.9293,2527.1,2526.7,1.98399319]
[1748876944446,0.79119,2526.8,2526.7,0.79714319]
[1748876944630,0.79119,2526.8,2526.7,0.00593319]
[1748876944833,1.97818,2526.6,2526.1,0.633]
[1748876945128,1.97818,2526.6,2526.3,0.79132]
[1748876945129,0.79133,2526.4,2526.3,0.79132]
[1748876945333,2.62051,2526.5,2526.4,0.79132]
[1748876945835,1.8292,2526.5,2526.4,0.79132]
[1748876946040,21.52149,2526.5,2526.4,0.79132]
[1748876946536,21.52149,2526.5,2526.3,0.79132]
[1748876946537,0.79134,2526.4,2526.3,0.79132]
[1748876947233,2.02714,2526.4,2526.3,0.79132]
[1748876947437,1.2358,2526.4,2526.3,0.79132]
[1748876947933,0.5934,2526.5,2526.4,0.79132]
[1748876948131,19.4934,2526.5,2526.4,0.79132]
[1748876949536,0.5934,2526.5,2526.4,0.79132]
[1748876950537,0.5934,2526.5,2526.4,1.13067999]
[1748876950735,0.5934,2526.5,2526.4,1.13068099]
[1748876950934,0.5934,2526.5,2526.4,0.79132]
[1748876951139,1.38469,2526.5,2526.4,0.79132]
[1748876951327,0.5934,2526.5,2526.4,0.79132]
[1748876951635,0.5934,2526.5,2526.4,1.13072685]
[1748876951835,0.5934,2526.5,2526.4,0.79132]
[1748876952731,0.5934,2526.5,2526.2,3.21373001]
[1748876953035,0.79144,2526.0,2525.9,0.07069789]
[1748876953235,22.89824,2526.0,2525.9,0.07069789]
[1748876953736,22.1068,2526.0,2525.9,0.07069789]
[1748876953926,22.1058,2526.0,2525.9,0.86217789]
[1748876954133,22.1058,2526.0,2525.9,0.07069789]
[1748876954335,22.1058,2526.0,2525.9,0.86217789]
[1748876954529,22.89724,2526.0,2525.9,0.07069789]
[1748876956942,22.89824,2526.0,2525.9,0.07069789]
[1748876958532,0.79163,2525.4,2525.3,1.2952]
[1748876958734,0.79163,2525.4,2525.0,0.6663]
[1748876958735,0.79173,2525.1,2525.0,0.6663]
[1748876958941,0.79173,2525.1,2524.8,7.18376453]
[1748876959249,18.898,2525.2,2525.1,0.79173]
[1748876960144,19.6897,2525.2,2525.1,0.79173]
[1748876960333,18.898,2525.2,2525.1,0.79173]
[1748876960536,19.6897,2525.2,2525.1,0.79173]
[1748876960739,0.79174,2525.1,2525.0,0.79174]
[1748876961143,19.68971,2525.2,2525.1,0.79173]
[1748876961539,3.2078,2525.4,2525.0,1.9794]
[1748876961743,0.00593319,2525.6,2525.5,0.7916]
[1748876962245,0.00593319,2525.6,2525.5,2.147]
[1748876963639,0.00593319,2525.6,2525.5,0.7916]
[1748876963841,0.00593319,2525.6,2525.4,0.79161]
[1748876963842,0.79162,2525.5,2525.4,0.79161]
[1748876964052,0.79752319,2525.6,2525.5,0.7916]
[1748876964755,0.00593319,2525.6,2525.5,0.7916]
[1748876964956,0.79750319,2525.6,2525.5,0.7916]
[1748876965253,0.00593319,2525.6,2525.5,0.7916]
[1748876966051,19.69850319,2525.6,2525.5,0.7916]
[1748876966247,18.90693319,2525.6,2525.2,4.332]
[1748876966452,2.04102,2525.5,2525.4,0.79163]
[1748876966644,19.69850319,2525.6,2525.5,0.7916]